fUSD/lending_fUSD_20240227
["ID","MTS","AMOUNT","RATE_DAILY","PERIOD"]
[315412735,1709019440727,150.0,0.00023,2]
[315412736,1709019460031,835.30604345,0.00022861,2]
[315412737,1709019506886,5736.21398198,0.00023,2]
[315412738,1709019532034,1180.7,0.00020789,2]
[315412739,1709019537654,10000.0,0.00023,2]
[315412740,1709019542110,405.62874005,0.0002212,3]
[315412741,1709019544008,751.04,0.00022696,2]
[315412742,1709019545341,737.6,0.00022696,2]
[315412743,1709019565060,150.0,0.00023,2]
[315412744,1709019578491,2961.0,0.000227,2]
[315412745,1709019579143,2665.0,0.000227,2]
[315412746,1709019588708,-894.1237356,0.00023013,2]
[315412747,1709019588738,-451.09336785,0.00023014,2]
[315412748,1709019588770,-677.73945384,0.0002302,2]
[315412749,1709019588805,-20277.41336688,0.00023028,2]
[315412750,1709019588837,-20275.8686551,0.00023028,2]
[315412751,1709019588870,-50000.0,0.00023028,2]
[315412752,1709019588901,-161.4030375,0.00023033,2]
[315412753,1709019588931,-1180.7,0.00023052,2]
[315412754,1709019588961,-157.69,0.00023133,2]
[315412755,1709019588992,-200.0,0.00023188,2]
[315412756,1709019589020,-800.0,0.00023188,2]
[315412757,1709019589047,-200.0,0.00023188,2]
[315412758,1709019589083,-203.0,0.00023411,2]
[315412759,1709019618813,-157.69,0.00023512,2]
[315412760,1709019618844,-177.9,0.00023548,2]
[315412761,1709019618873,-499.99,0.00023548,2]
[315412762,1709019618904,-695.7,0.00023548,2]
[315412763,1709019618935,-153.46020651,0.0002356,2]
[315412764,1709019618971,-150.0,0.00023579,2]
[315412765,1709019619000,-1000.0,0.00023599,2]
[315412766,1709019619029,-68291.0167,0.000236,2]
[315412767,1709019619056,-253.4241,0.000236,2]
[315412768,1709019619083,-1000.0,0.000236,2]
[315412769,1709019619320,-150.0,0.00023604,2]
[315412770,1709019619353,-150.0,0.00023683,2]
[315412771,1709019619381,-12435.31051828,0.00023698,2]
[315412772,1709019619409,-893.0025,0.00023698,2]
[315412773,1709019619437,-500.0,0.00023699,2]
[315412774,1709019619466,-500.0,0.00023699,2]
[315412775,1709019619494,-500.0,0.00023699,2]
[315412776,1709019619522,-500.0,0.00023699,2]
[315412777,1709019619550,-500.0,0.00023699,2]
[315412778,1709019619581,-377.89596671,0.00023699,2]
[315412779,1709019619610,-500.0,0.00023699,2]
[315412780,1709019619640,-500.0,0.00023699,2]
[315412781,1709019619673,-500.0,0.00023699,2]
[315412782,1709019619704,-500.0,0.00023699,2]
[315412783,1709019619739,-500.0,0.00023699,2]
[315412784,1709019619772,-500.0,0.00023699,2]
[315412785,1709019619802,-500.0,0.00023699,2]
[315412786,1709019619835,-500.0,0.00023699,2]
[315412787,1709019619864,-500.0,0.00023699,2]
[315412788,1709019619892,-500.0,0.00023699,2]
[315412789,1709019619920,-509.67,0.00023699,2]
[315412790,1709019619947,-500.0,0.00023699,2]
[315412791,1709019619975,-500.0,0.00023699,2]
[315412792,1709019620003,-500.0,0.00023699,2]
[315412793,1709019620030,-158.02416643,0.00023699,2]
[315412794,1709019620058,-647.16,0.00023699,2]
[315412795,1709019620085,-500.0,0.00023699,2]
[315412796,1709019620113,-500.0,0.00023699,2]
[315412797,1709019620142,-500.0,0.00023699,2]
[315412798,1709019620171,-500.0,0.00023699,2]
[315412799,1709019620199,-500.0,0.00023699,2]
[315412800,1709019620228,-500.0,0.00023699,2]
[315412801,1709019620263,-500.0,0.00023699,2]
[315412802,1709019620293,-500.0,0.00023699,2]
[315412803,1709019620322,-500.0,0.00023699,2]
[315412804,1709019620351,-500.0,0.00023699,2]
[315412805,1709019620378,-500.0,0.00023699,2]
[315412806,1709019620406,-500.0,0.00023699,2]
[315412807,1709019620433,-500.0,0.00023699,2]
[315412808,1709019620462,-500.0,0.00023699,2]
[315412809,1709019620489,-500.0,0.00023699,2]
[315412810,1709019620517,-500.0,0.00023699,2]
[315412811,1709019620544,-500.0,0.00023699,2]
[315412812,1709019620573,-500.0,0.00023699,2]
[315412813,1709019620601,-500.0,0.00023699,2]
[315412814,1709019620630,-500.0,0.00023699,2]
[315412815,1709019620658,-438.68,0.00023699,2]
[315412816,1709019620685,-500.0,0.00023699,2]
[315412817,1709019620712,-500.0,0.00023699,2]
[315412818,1709019620740,-500.0,0.00023699,2]
[315412819,1709019620768,-500.0,0.00023699,2]
[315412820,1709019620796,-188.02276471,0.00023699,2]
[315412821,1709019620824,-500.0,0.00023699,2]
[315412822,1709019620851,-500.0,0.00023699,2]
[315412823,1709019620879,-500.0,0.00023699,2]
[315412824,1709019620909,-500.0,0.00023699,2]
[315412825,1709019620939,-500.0,0.00023699,2]
[315412826,1709019620968,-500.0,0.00023699,2]
[315412827,1709019620999,-500.43,0.00023699,2]
[315412828,1709019621028,-500.0,0.00023699,2]
[315412829,1709019621059,-233.27,0.00023699,2]
[315412830,1709019621090,-505.89,0.00023699,2]
[315412831,1709019621119,-500.0,0.00023699,2]
[315412832,1709019621147,-500.0,0.00023699,2]
[315412833,1709019621179,-500.0,0.00023699,2]
[315412834,1709019621207,-154.85423755,0.00023699,2]
[315412835,1709019621235,-500.0,0.00023699,2]
[315412836,1709019621265,-500.0,0.00023699,2]
[315412837,1709019621292,-500.0,0.00023699,2]
[315412838,1709019621319,-500.0,0.00023699,2]
[315412839,1709019621347,-500.0,0.00023699,2]
[315412840,1709019621376,-500.0,0.00023699,2]
[315412841,1709019621405,-500.0,0.00023699,2]
[315412842,1709019621432,-632.45626493,0.00023699,2]
[315412843,1709019621464,-500.0,0.00023699,2]
[315412844,1709019621492,-623.39,0.00023699,2]
[315412845,1709019621519,-500.0,0.00023699,2]
[315412846,1709019621548,-500.0,0.00023699,2]
[315412847,1709019621575,-500.0,0.00023699,2]
[315412848,1709019621603,-500.0,0.00023699,2]
[315412849,1709019621631,-500.0,0.00023699,2]
[315412850,1709019621659,-500.0,0.00023699,2]
[315412851,1709019621688,-288.75743034,0.00023699,2]
[315412852,1709019621714,-500.0,0.00023699,2]
[315412853,1709019621741,-649.55,0.00023699,2]
[315412854,1709019621770,-500.0,0.00023699,2]
[315412855,1709019621798,-500.0,0.00023699,2]
[315412856,1709019621827,-500.0,0.00023699,2]
[315412857,1709019621856,-500.0,0.00023699,2]
[315412858,1709019621885,-500.0,0.00023699,2]
[315412859,1709019621913,-500.0,0.00023699,2]
[315412860,1709019621940,-500.0,0.00023699,2]
[315412861,1709019621967,-500.0,0.00023699,2]
[315412862,1709019621994,-500.0,0.00023699,2]
[315412863,1709019622021,-500.0,0.00023699,2]
[315412864,1709019622048,-500.0,0.00023699,2]
[315412865,1709019622076,-500.0,0.00023699,2]
[315412866,1709019622105,-496.96,0.00023699,2]
[315412867,1709019622133,-500.0,0.00023699,2]
[315412868,1709019622162,-500.0,0.00023699,2]
[315412869,1709019622192,-500.0,0.00023699,2]
[315412870,1709019622220,-500.0,0.00023699,2]
[315412871,1709019622247,-500.0,0.00023699,2]
[315412872,1709019622275,-500.0,0.00023699,2]
[315412873,1709019622306,-500.0,0.00023699,2]
[315412874,1709019622335,-500.0,0.00023699,2]
[315412875,1709019622362,-500.0,0.00023699,2]
[315412876,1709019622390,-500.0,0.00023699,2]
[315412877,1709019622418,-500.0,0.00023699,2]
[315412878,1709019622447,-500.0,0.00023699,2]
[315412879,1709019622476,-500.0,0.00023699,2]
[315412880,1709019622508,-500.0,0.00023699,2]
[315412881,1709019622537,-66372.31486515,0.000237,3]
[315412882,1709019622566,-340.57631974,0.000237,2]
[315412883,1709019622596,-1345.0,0.000237,2]
[315412884,1709019622630,-199.0,0.000237,2]
[315412885,1709019622659,-4000.0,0.000237,2]
[315412886,1709019622689,-150.0,0.00023718,2]
[315412887,1709019622718,-349.49,0.00023727,2]
[315412888,1709019622747,-150.0,0.00023736,2]
[315412889,1709019622775,-150.0,0.00023737,2]
[315412890,1709019622809,-150.0,0.00023739,2]
[315412891,1709019622842,-150.0,0.0002374,2]
[315412892,1709019622881,-150.0,0.00023744,2]
[315412893,1709019622916,-150.0,0.00023755,2]
[315412894,1709019622948,-523.38046725,0.00023755,2]
[315412895,1709019622978,-500.0,0.00023755,2]
[315412896,1709019623010,-519.65,0.00023755,2]
[315412897,1709019623042,-553.52,0.00023755,2]
[315412898,1709019623078,-500.0,0.00023755,2]
[315412899,1709019623115,-500.0,0.00023755,2]
[315412900,1709019623148,-500.0,0.00023755,2]
[315412901,1709019623179,-500.0,0.00023755,2]
[315412902,1709019623213,-500.0,0.00023755,2]
[315412903,1709019623245,-150.0,0.00023766,2]
[315412904,1709019623273,-2054.31977946,0.00023783,2]
[315412905,1709019623302,-150.0,0.00023785,2]
[315412906,1709019623334,-379.92,0.00023795,2]
[315412907,1709019623364,-500.0,0.00023795,2]
[315412908,1709019623395,-560.63,0.00023795,2]
[315412909,1709019623428,-500.0,0.00023795,2]
[315412910,1709019623459,-500.0,0.00023795,2]
[315412911,1709019623492,-500.0,0.00023795,2]
[315412912,1709019623525,-500.0,0.00023795,2]
[315412913,1709019623556,-882.51,0.00023795,2]
[315412914,1709019623587,-500.0,0.00023795,2]
[315412915,1709019623628,-500.0,0.00023795,2]
[315412916,1709019623661,-500.0,0.00023795,2]
[315412917,1709019623693,-500.0,0.00023795,2]
[315412918,1709019623727,-500.0,0.00023795,2]
[315412919,1709019623758,-500.0,0.00023795,2]
[315412920,1709019623792,-500.0,0.00023795,2]
[315412921,1709019623824,-500.0,0.00023795,2]
[315412922,1709019623859,-500.0,0.00023795,2]
[315412923,1709019623894,-500.0,0.00023795,2]
[315412924,1709019623931,-305.35,0.00023795,2]
[315412925,1709019623966,-45093.0,0.00023796,2]
[315412926,1709019624000,-381.08986696,0.00023796,2]
[315412927,1709019624031,-300.7289119,0.00023796,2]
[315412928,1709019624063,-465.83846625,0.00023796,2]
[315412929,1709019624093,-204.58959768,0.00023797,2]
[315412930,1709019624124,-4986.39271776,0.00023797,2]
[315412931,1709019624154,-500.0,0.00023797,2]
[315412932,1709019624183,-500.0,0.00023797,2]
[315412933,1709019624213,-564.76,0.00023797,2]
[315412934,1709019624242,-500.0,0.00023797,2]
[315412935,1709019624273,-475.74,0.00023797,2]
[315412936,1709019624305,-500.0,0.00023797,2]
[315412937,1709019624337,-500.0,0.00023797,2]
[315412938,1709019624369,-500.0,0.00023797,2]
[315412939,1709019624401,-500.0,0.00023797,2]
[315412940,1709019624430,-500.0,0.00023797,2]
[315412941,1709019624463,-500.0,0.00023797,2]
[315412942,1709019624496,-500.0,0.00023797,2]
[315412943,1709019624526,-500.0,0.00023797,2]
[315412944,1709019624556,-500.0,0.00023797,2]
[315412945,1709019624587,-500.0,0.00023797,2]
[315412946,1709019624617,-228.2,0.00023797,2]
[315412947,1709019624648,-500.0,0.00023797,2]
[315412948,1709019624678,-263.61192605,0.00023798,2]
[315412949,1709019624708,-2095.92245728,0.00023798,2]
[315412950,1709019624739,-2095.92245725,0.00023798,2]
[315412951,1709019624775,-2095.92245725,0.00023798,2]
[315412952,1709019624831,-2095.92245725,0.00023798,2]
[315412953,1709019624883,-2095.92245725,0.00023798,2]
[315412954,1709019624940,-2095.92245725,0.00023798,2]
[315412955,1709019624986,-20627.47922169,0.00023798,2]
[315412956,1709019625018,-20627.47922163,0.00023798,2]
[315412957,1709019625050,-20627.47922163,0.00023798,2]
[315412958,1709019625083,-20627.47922163,0.00023798,2]
[315412959,1709019625113,-20627.47922163,0.00023798,2]
[315412960,1709019625143,-20627.47922163,0.00023798,2]
[315412961,1709019625172,-1000.0,0.00023799,2]
[315412962,1709019625205,-500.0,0.00023799,2]
[315412963,1709019625238,-500.0,0.00023799,2]
[315412964,1709019625270,-437.43,0.00023799,2]
[315412965,1709019625301,-244.02,0.00023799,2]
[315412966,1709019625339,-500.0,0.00023799,2]
[315412967,1709019625368,-500.0,0.00023799,2]
[315412968,1709019625398,-500.0,0.00023799,2]
[315412969,1709019625430,-266.07,0.00023799,2]
[315412970,1709019625460,-519.65,0.00023799,2]
[315412971,1709019625490,-565.18494053,0.00023799,2]
[315412972,1709019625522,-882.51,0.00023799,2]
[315412973,1709019625556,-500.0,0.00023799,2]
[315412974,1709019625591,-500.0,0.00023799,2]
[315412975,1709019625628,-500.0,0.00023799,2]
[315412976,1709019625662,-450.81,0.00023799,2]
[315412977,1709019625709,-500.0,0.00023799,2]
[315412978,1709019625749,-500.0,0.00023799,2]
[315412979,1709019625785,-500.0,0.00023799,2]
[315412980,1709019625821,-500.0,0.00023799,2]
[315412981,1709019625862,-500.0,0.00023799,2]
[315412982,1709019625896,-500.0,0.00023799,2]
[315412983,1709019625934,-503.34,0.00023799,2]
[315412984,1709019625970,-500.0,0.00023799,2]
[315412985,1709019626005,-500.0,0.00023799,2]
[315412986,1709019626036,-500.0,0.00023799,2]
[315412987,1709019626066,-500.0,0.00023799,2]
[315412988,1709019626096,-500.0,0.00023799,2]
[315412989,1709019626126,-500.0,0.00023799,2]
[315412990,1709019626157,-500.0,0.00023799,2]
[315412991,1709019626188,-586.1,0.00023799,2]
[315412992,1709019626220,-500.0,0.00023799,2]
[315412993,1709019626252,-500.0,0.00023799,2]
[315412994,1709019626290,-500.0,0.00023799,2]
[315412995,1709019626322,-500.0,0.00023799,2]
[315412996,1709019626358,-2095.92245725,0.000238,2]
[315412997,1709019626391,-20627.47922163,0.000238,2]
[315412998,1709019626423,-2001.4081049,0.000238,2]
[315412999,1709019626454,-216527.51729429,0.000238,2]
[315413000,1709019626487,-22647.45710157,0.000238,2]
[315413001,1709019626518,-348.0,0.000238,2]
[315413002,1709019626550,-439.0,0.000238,2]
[315413003,1709019626584,-1000.0,0.000238,2]
[315413004,1709019626619,-241.70578047,0.00023801,2]
[315413005,1709019626653,-150.0,0.00023806,2]
[315413006,1709019626684,-2054.31977946,0.00023813,2]
[315413007,1709019626716,-1500.0,0.00023822,2]
[315413008,1709019626747,-500.0,0.00023823,2]
[315413009,1709019626788,-882.51,0.00023832,2]
[315413010,1709019627149,-500.0,0.00023832,2]
[315413011,1709019627187,-2095.92245725,0.00023833,2]
[315413012,1709019627220,-20627.47922163,0.00023833,2]
[315413013,1709019627251,-159.7,0.00023836,2]
[315413014,1709019627279,-25003.01883689,0.00023837,2]
[315413015,1709019627307,-1000.0,0.0002384,7]
[315413016,1709019627336,-2054.31977946,0.00023842,2]
[315413017,1709019627366,-150.0,0.00023844,2]
[315413018,1709019627396,-349.49,0.00023846,2]
[315413019,1709019627429,-840.0,0.0002385,7]
[315413020,1709019627483,-150.0,0.00023852,2]
[315413021,1709019627540,-150.0,0.00023853,2]
[315413022,1709019627595,-500.0,0.00023855,2]
[315413023,1709019627632,-152.0,0.00023857,5]
[315413024,1709019627659,-1000.0,0.0002386,7]
[315413025,1709019627687,-2095.92245725,0.00023867,2]
[315413026,1709019627715,-20627.47922163,0.00023867,2]
[315413027,1709019627743,-1000.0,0.0002387,7]
[315413028,1709019627772,-2054.31977946,0.00023871,2]
[315413029,1709019627804,-150.0,0.00023874,2]
[315413030,1709019627832,-150.0,0.00023874,2]
[315413031,1709019627868,-5800.0,0.00023875,2]
[315413032,1709019627898,-150.0,0.00023875,2]
[315413033,1709019627934,-153.35,0.00023879,2]
[315413034,1709019627962,-1011.0,0.0002388,7]
[315413035,1709019627990,-500.0,0.00023882,2]
[315413036,1709019628019,-150.0,0.00023883,2]
[315413037,1709019628046,-5800.0,0.00023883,2]
[315413038,1709019628076,-150.0,0.00023886,2]
[315413039,1709019628104,-500.0,0.00023887,2]
[315413040,1709019628133,-1722.0,0.0002389,7]
[315413041,1709019628162,-500.0,0.00023891,2]
[315413042,1709019628189,-500.0,0.00023891,2]
[315413043,1709019628227,-500.0,0.00023891,2]
[315413044,1709019628259,-500.0,0.00023891,2]
[315413045,1709019628287,-5800.0,0.00023892,2]
[315413046,1709019628317,-157.69,0.00023892,2]
[315413047,1709019628345,-14421.7907,0.00023899,2]
[315413048,1709019628372,-500.0,0.00023899,2]
[315413049,1709019628400,-151.21210289,0.00023899,2]
[315413050,1709019628431,-33438.24091477,0.000239,4]
[315413051,1709019628462,-2491.93231261,0.000239,2]
[315413052,1709019628494,-2491.93231261,0.000239,2]
[315413053,1709019628523,-7000.0,0.000239,2]
[315413054,1709019628552,-1000.0,0.000239,2]
[315413055,1709019628582,-500.0,0.000239,2]
[315413056,1709019628611,-5800.0,0.000239,2]
[315413057,1709019628641,-1425.91396326,0.000239,2]
[315413058,1709019628671,-1000.0,0.000239,7]
[315413059,1709019628700,-2491.93231261,0.000239,2]
[315413060,1709019628727,-161.67914734,0.000239,2]
[315413061,1709019628759,-5000.0,0.000239,2]
[315413062,1709019628788,-443.94162926,0.000239,2]
[315413063,1709019628820,-161.40303749,0.000239,2]
[315413064,1709019628851,-161.54729497,0.000239,2]
[315413065,1709019628884,-161.54729497,0.000239,2]
[315413066,1709019628916,-161.54729497,0.000239,2]
[315413067,1709019628944,-161.54729497,0.000239,2]
[315413068,1709019628973,-161.54729497,0.000239,2]
[315413069,1709019629005,-161.54729497,0.000239,2]
[315413070,1709019629035,-2095.92245725,0.000239,2]
[315413071,1709019629063,-161.54729497,0.000239,2]
[315413072,1709019629092,-161.54729497,0.000239,2]
[315413073,1709019629122,-161.54729497,0.000239,2]
[315413074,1709019629151,-20627.47922163,0.000239,2]
[315413075,1709019629182,-2054.31977946,0.000239,2]
[315413076,1709019629211,-316.67607334,0.000239,2]
[315413077,1709019629243,-11398.47339315,0.000239,2]
[315413078,1709019629274,-2307.56038087,0.000239,2]
[315413079,1709019629307,-2377.68470713,0.000239,2]
[315413080,1709019629338,-5391.69357458,0.000239,2]
[315413081,1709019629367,-3207.77041386,0.000239,2]
[315413082,1709019629397,-387.27114907,0.000239,8]
[315413083,1709019629428,-150.0,0.00023913,2]
[315413084,1709019629459,-305.35,0.00023916,2]
[315413085,1709019629489,-500.0,0.00023918,2]
[315413086,1709019629520,-150.0,0.00023924,2]
[315413087,1709019629549,-300.0,0.00023925,2]
[315413088,1709019629584,-150.0,0.00023929,2]
[315413089,1709019629618,-521.0,0.00023929,2]
[315413090,1709019629650,-150.0,0.00023929,2]
[315413091,1709019629679,-150.0,0.00023946,2]
[315413092,1709019629708,-150.0,0.00023949,2]
[315413093,1709019629737,-500.0,0.0002395,2]
[315413094,1709019629767,-519.65,0.00023959,2]
[315413095,1709019629797,-500.0,0.00023959,2]
[315413096,1709019629825,-36727.4024999,0.0002396,2]
[315413097,1709019629858,-4771.2,0.0002396,2]
[315413098,1709019629889,-349.49,0.00023965,2]
[315413099,1709019629921,-306.59835709,0.00023972,2]
[315413100,1709019629950,-300.0,0.00023973,2]
[315413101,1709019629984,-150.0,0.00023973,2]
[315413102,1709019630018,-150.0,0.00023981,2]
[315413103,1709019630049,-500.0,0.00023982,2]
[315413104,1709019630080,-150.0,0.00023986,2]
[315413105,1709019630110,-882.51,0.00023989,2]
[315413106,1709019630141,-500.0,0.00023989,2]
[315413107,1709019630169,-22930.78437357,0.0002399,3]
[315413108,1709019630202,-149725.6652669,0.00023994,2]
[315413109,1709019630236,-153.35,0.00023994,2]
[315413110,1709019630265,-243.5002963,0.00023998,2]
[315413111,1709019630298,-6731.17271114,0.00023998,3]
[315413112,1709019630327,-500.0,0.00023998,2]
[315413113,1709019630359,-519.65,0.00023998,2]
[315413114,1709019630393,-500.0,0.00023998,2]
[315413115,1709019630422,-599999.23255101,0.00023998,2]
[315413116,1709019630452,-151.0,0.00023998,7]
[315413117,1709019630485,-151.0,0.00023998,7]
[315413118,1709019630514,-500.0,0.00023999,2]
[315413119,1709019630544,-500.0,0.00023999,2]
[315413120,1709019630575,-500.0,0.00023999,2]
[315413121,1709019630604,-500.0,0.00023999,2]
[315413122,1709019630636,-500.0,0.00023999,2]
[315413123,1709019630671,-500.0,0.00023999,2]
[315413124,1709019630699,-500.0,0.00023999,2]
[315413125,1709019630731,-500.0,0.00023999,2]
[315413126,1709019630760,-500.0,0.00023999,2]
[315413127,1709019630794,-219.74392031,0.00023999,2]
[315413128,1709019630825,-500.0,0.00023999,2]
[315413129,1709019630855,-500.0,0.00023999,2]
[315413130,1709019630885,-500.0,0.00023999,2]
[315413131,1709019630915,-500.0,0.00023999,2]
[315413132,1709019630944,-500.0,0.00023999,2]
[315413133,1709019630974,-500.0,0.00023999,2]
[315413134,1709019631005,-500.0,0.00023999,2]
[315413135,1709019631034,-500.0,0.00023999,2]
[315413136,1709019631065,-500.0,0.00023999,2]
[315413137,1709019631096,-500.0,0.00023999,2]
[315413138,1709019631126,-500.0,0.00023999,2]
[315413139,1709019631157,-500.0,0.00023999,2]
[315413140,1709019631187,-500.0,0.00023999,2]
[315413141,1709019631228,-500.0,0.00023999,2]
[315413142,1709019631281,-500.0,0.00023999,2]
[315413143,1709019631341,-500.0,0.00023999,2]
[315413144,1709019631388,-500.0,0.00023999,2]
[315413145,1709019631428,-500.0,0.00023999,2]
[315413146,1709019631462,-252.87326047,0.00023999,2]
[315413147,1709019631670,-519.65,0.00023999,2]
[315413148,1709019631702,-519.65,0.00023999,2]
[315413149,1709019631735,-519.65,0.00023999,2]
[315413150,1709019631766,-519.65,0.00023999,2]
[315413151,1709019631797,-519.65,0.00023999,2]
[315413152,1709019631827,-519.65,0.00023999,2]
[315413153,1709019631858,-519.65,0.00023999,2]
[315413154,1709019631892,-519.65,0.00023999,2]
[315413155,1709019631927,-519.65,0.00023999,2]
[315413156,1709019631958,-519.65,0.00023999,2]
[315413157,1709019631989,-519.65,0.00023999,2]
[315413158,1709019632019,-519.65,0.00023999,2]
[315413159,1709019632050,-519.65,0.00023999,2]
[315413160,1709019632081,-519.65,0.00023999,2]
[315413161,1709019632110,-519.65,0.00023999,2]
[315413162,1709019632139,-519.65,0.00023999,2]
[315413163,1709019632168,-519.65,0.00023999,2]
[315413164,1709019632198,-519.65,0.00023999,2]
[315413165,1709019632228,-519.65,0.00023999,2]
[315413166,1709019632259,-519.78,0.00023999,2]
[315413167,1709019632290,-882.51,0.00023999,2]
[315413168,1709019632319,-882.51,0.00023999,2]
[315413169,1709019632349,-882.51,0.00023999,2]
[315413170,1709019632381,-882.51,0.00023999,2]
[315413171,1709019632416,-882.51,0.00023999,2]
[315413172,1709019632449,-882.51,0.00023999,2]
[315413173,1709019632481,-882.51,0.00023999,2]
[315413174,1709019632512,-882.51,0.00023999,2]
[315413175,1709019632544,-882.51,0.00023999,2]
[315413176,1709019632575,-882.51,0.00023999,2]
[315413177,1709019632606,-882.51,0.00023999,2]
[315413178,1709019632636,-882.51,0.00023999,2]
[315413179,1709019632665,-882.51,0.00023999,2]
[315413180,1709019632695,-882.51,0.00023999,2]
[315413181,1709019632726,-882.51,0.00023999,2]
[315413182,1709019632755,-882.51,0.00023999,2]
[315413183,1709019632786,-882.51,0.00023999,2]
[315413184,1709019632817,-882.51,0.00023999,2]
[315413185,1709019632847,-882.51,0.00023999,2]
[315413186,1709019632880,-882.64,0.00023999,2]
[315413187,1709019632911,-500.0,0.00023999,2]
[315413188,1709019632947,-500.0,0.00023999,2]
[315413189,1709019632986,-500.0,0.00023999,2]
[315413190,1709019633024,-500.0,0.00023999,2]
[315413191,1709019633059,-500.0,0.00023999,2]
[315413192,1709019633095,-500.0,0.00023999,2]
[315413193,1709019633129,-500.0,0.00023999,2]
[315413194,1709019633168,-500.0,0.00023999,2]
[315413195,1709019633203,-500.0,0.00023999,2]
[315413196,1709019633238,-500.0,0.00023999,2]
[315413197,1709019633271,-500.0,0.00023999,2]
[315413198,1709019633304,-500.0,0.00023999,2]
[315413199,1709019633342,-500.0,0.00023999,2]
[315413200,1709019633375,-500.0,0.00023999,2]
[315413201,1709019633408,-500.0,0.00023999,2]
[315413202,1709019633439,-500.0,0.00023999,2]
[315413203,1709019633475,-500.0,0.00023999,2]
[315413204,1709019633568,-171.79841828,0.00023999,2]
[315413205,1709019633654,-500.0,0.00023999,2]
[315413206,1709019633690,-500.0,0.00023999,2]
[315413207,1709019633723,-500.0,0.00023999,2]
[315413208,1709019633753,-500.0,0.00023999,2]
[315413209,1709019633782,-500.0,0.00023999,2]
[315413210,1709019633811,-500.0,0.00023999,2]
[315413211,1709019633839,-500.0,0.00023999,2]
[315413212,1709019633870,-500.0,0.00023999,2]
[315413213,1709019633899,-500.0,0.00023999,2]
[315413214,1709019633932,-500.0,0.00023999,2]
[315413215,1709019633962,-500.0,0.00023999,2]
[315413216,1709019633995,-500.0,0.00023999,2]
[315413217,1709019634025,-291.48161535,0.00023999,2]
[315413218,1709019634055,-500.0,0.00023999,2]
[315413219,1709019634085,-419.36,0.00023999,2]
[315413220,1709019634118,-319.7,0.00023999,2]
[315413221,1709019634148,-250.03982996,0.00024,2]
[315413222,1709019634180,-4368.0,0.00024,3]
[315413223,1709019634213,-900.0,0.00024,2]
[315413224,1709019634244,-1000.0,0.00024,7]
[315413225,1709019634274,-200.0,0.00024,2]
[315413226,1709019634305,-12827.81545405,0.00024,2]
[315413227,1709019634336,-1000.0,0.00024,2]
[315413228,1709019634363,-1006.9369391,0.00024,2]
[315413229,1709019634392,-576.91367284,0.00024,3]
[315413230,1709019634423,-2023529.55310507,0.00024,30]
[315413231,1709019634452,-1075409.88144677,0.00024,2]
[315413232,1709019634481,-600.0,0.00024,25]
[315413233,1709019634509,-2000.0,0.00024,5]
[315413234,1709019634538,-4956352.08124807,0.00024,30]